bitfinex-derivatives/quotes_BTCF0:USTF0_20250501
["timestamp","ask_amount","ask_price","bid_price","bid_amount"]
[1746059218137,0.2119391,94362.0,94361.0,0.2982216]
[1746059218442,0.2119391,94362.0,94361.0,0.3512064]
[1746059218744,0.2119391,94362.0,94361.0,0.3712064]
[1746059218942,0.2119391,94362.0,94361.0,0.3182216]
[1746059219137,0.3957391,94362.0,94361.0,0.3182216]
[1746059219346,0.3957391,94362.0,94361.0,0.3192216]
[1746059220840,0.3957391,94362.0,94361.0,0.3202216]
[1746059226146,0.3957391,94362.0,94361.0,0.2869216]
[1746059228335,0.3957391,94362.0,94361.0,0.3180216]
[1746059231251,0.7565391,94362.0,94361.0,0.0531]
[1746059231551,0.7565391,94362.0,94361.0,0.0331]
[1746059231746,0.7565391,94362.0,94361.0,0.2450413]
[1746059232148,0.7565391,94362.0,94361.0,0.0331]
[1746059232348,0.7565391,94362.0,94361.0,0.002]
[1746059232551,0.8625151,94362.0,94361.0,0.002]
[1746059241139,0.2119593,94353.0,94352.0,0.0319]
[1746059241350,0.5727593,94353.0,94352.0,0.0319]
[1746059242055,0.6369593,94353.0,94352.0,0.0319]
[1746059242255,0.7589593,94353.0,94352.0,0.0319]
[1746059242757,0.7589593,94353.0,94352.0,0.0349]
[1746059243153,0.7589593,94353.0,94352.0,0.0379]
[1746059243351,0.7589593,94353.0,94352.0,0.0359]
[1746059243852,0.7589593,94353.0,94352.0,0.0329]
[1746059244045,0.7589593,94353.0,94352.0,0.0349]
[1746059245456,0.7589593,94353.0,94352.0,0.0449]
[1746059247553,0.2119885,94340.0,94337.0,0.3608]
[1746059247857,0.2649861,94340.0,94339.0,0.2119907]
[1746059248051,0.2649861,94340.0,94339.0,0.2419907]
[1746059248253,0.3869861,94340.0,94339.0,0.2419907]
[1746059248848,0.3869861,94340.0,94339.0,0.2439907]
[1746059250247,0.3869861,94340.0,94339.0,0.2459907]
[1746059250854,0.3869861,94340.0,94339.0,0.2784907]
[1746059251447,0.3869861,94340.0,94339.0,0.0665]
[1746059252558,0.212002,94334.0,94333.0,0.0015901]
[1746059252745,0.572802,94334.0,94333.0,0.0015901]
[1746059253057,0.694802,94334.0,94333.0,0.0015901]
[1746059253566,0.2120065,94332.0,94331.0,0.0325]
[1746059254152,0.3340065,94332.0,94331.0,0.0325]
[1746059254456,0.3643065,94332.0,94331.0,0.03254]
[1746059255856,0.3643065,94332.0,94331.0,0.06404]
[1746059260562,0.3643065,94332.0,94331.0,0.07404]
[1746059262158,0.3340065,94332.0,94331.0,0.07404]
[1746059262657,0.3650065,94332.0,94331.0,0.06404]
[1746059265567,0.3982065,94332.0,94331.0,0.06404]
[1746059270169,0.3650065,94332.0,94331.0,0.06404]
[1746059275459,0.7258065,94332.0,94331.0,0.06404]
[1746059283471,0.3650065,94332.0,94331.0,0.06404]
[1746059283671,0.7258065,94332.0,94331.0,0.06404]
[1746059285477,0.7258065,94332.0,94331.0,0.07404]
[1746059300695,0.7898065,94332.0,94331.0,0.07404]
[1746059300899,0.6948065,94332.0,94331.0,0.07404]
[1746059301103,0.3340465,94332.0,94331.0,0.2860487]
[1746059301397,0.2120465,94332.0,94331.0,0.2860487]
[1746059308296,0.2120465,94332.0,94331.0,0.2860087]
[1746059311403,0.2120465,94332.0,94331.0,0.2870087]
[1746059312399,0.2120465,94332.0,94331.0,0.2880087]
[1746059312802,0.2120465,94332.0,94331.0,0.2870087]
[1746059313005,0.2120465,94332.0,94331.0,0.2880087]
[1746059313805,0.2426465,94332.0,94331.0,0.2880087]
[1746059317395,0.2426465,94332.0,94331.0,0.076]
[1746059317909,0.2120155,94328.0,94327.0,0.0015902]
[1746059318100,0.6948155,94328.0,94327.0,0.0016442]
[1746059318801,0.7553155,94328.0,94327.0,0.0016442]
[1746059319001,0.7553155,94328.0,94327.0,0.0036442]
[1746059319402,0.7553155,94328.0,94327.0,0.0046442]
[1746059319707,0.7553155,94328.0,94327.0,0.0036442]
[1746059320607,0.7250155,94328.0,94327.0,0.2146619]
[1746059320812,0.3642155,94328.0,94327.0,0.3846619]
[1746059321112,0.3642155,94328.0,94327.0,0.4460619]
[1746059321303,0.2422555,94328.0,94327.0,0.4460619]
[1746059321612,0.25018351,94328.0,94327.0,0.4460619]
[1746059330314,0.00796801,94328.0,94327.0,0.4460619]
[1746059330619,0.21994351,94328.0,94327.0,0.4460619]
[1746059330814,0.21998351,94328.0,94327.0,0.4460619]
[1746059332216,0.21998351,94328.0,94327.0,0.5680619]
[1746059332920,0.00796801,94328.0,94327.0,0.5680619]
[1746059333121,0.21998351,94328.0,94327.0,0.5680619]
[1746059333325,0.00796801,94328.0,94327.0,0.5680619]
[1746059333514,0.21998351,94328.0,94327.0,0.5680619]
[1746059334111,0.21998351,94328.0,94327.0,0.4460619]
[1746059334621,0.00796801,94328.0,94327.0,0.4460619]
[1746059335510,0.21998351,94328.0,94327.0,0.4460619]
[1746059336019,0.21998351,94328.0,94327.0,0.2340442]
[1746059336223,0.21998351,94328.0,94327.0,0.4460619]
[1746059336716,0.21998351,94328.0,94327.0,0.4460079]
[1746059336920,0.21998351,94328.0,94327.0,0.4460479]
[1746059342414,0.25228351,94328.0,94327.0,0.4460479]
[1746059353120,0.04026801,94328.0,94327.0,0.4460479]
[1746059356430,5.401e-05,94340.0,94332.0,0.0530013]
[1746059356617,0.0323,94342.0,94335.0,0.2119997]
[1746059356930,0.13526119,94336.0,94335.0,0.8427997]
[1746059357225,0.13522119,94336.0,94335.0,0.9647997]
[1746059357425,0.13526119,94336.0,94335.0,0.9647997]
[1746059357626,0.13526119,94336.0,94335.0,0.6039997]
[1746059358024,0.13726119,94336.0,94335.0,0.6039997]
[1746059358627,0.13926119,94336.0,94335.0,0.6039997]
[1746059359528,0.13526119,94336.0,94335.0,0.6109997]
[1746059360223,0.13526119,94336.0,94335.0,0.4889997]
[1746059360730,4e-05,94336.0,94335.0,0.4889997]
[1746059366038,4e-05,94336.0,94335.0,0.4859997]
[1746059366236,4e-05,94336.0,94335.0,0.4889997]
[1746059367732,4e-05,94336.0,94335.0,0.4849997]
[1746059367938,4e-05,94336.0,94335.0,0.4879997]
[1746059369133,4e-05,94336.0,94335.0,0.4849997]
[1746059369335,4e-05,94336.0,94335.0,0.4879997]
[1746059369643,4e-05,94336.0,94335.0,0.4849997]
[1746059369832,4e-05,94336.0,94335.0,0.4879997]
[1746059370740,4e-05,94336.0,94335.0,0.4869997]
[1746059373135,4e-05,94336.0,94335.0,0.5513997]
[1746059375832,0.00079064,94336.0,94335.0,0.5513997]
[1746059377843,0.21278814,94336.0,94335.0,0.5513997]
[1746059378030,0.00079064,94336.0,94335.0,0.5513997]
[1746059378942,0.00079064,94336.0,94335.0,0.5483997]
[1746059379145,0.00079064,94336.0,94335.0,0.5513997]
[1746059395162,0.03119064,94336.0,94335.0,0.5513997]
[1746059398051,0.24318814,94336.0,94335.0,0.275]
[1746059398254,0.27488814,94336.0,94335.0,0.4869997]
[1746059399258,0.39688814,94336.0,94335.0,0.4869997]
[1746059399955,0.39688814,94336.0,94335.0,0.4859997]
[1746059400164,0.39688814,94336.0,94335.0,0.4849997]
[1746059402865,0.39688814,94336.0,94335.0,0.273]
[1746059403071,0.39688814,94336.0,94327.0,0.0015902]
[1746059403072,0.2120155,94328.0,94327.0,0.0015902]
[1746059403365,0.21202,94326.0,94325.0,0.00106016]
[1746059403663,0.318036,94326.0,94325.0,0.00106016]
[1746059403863,0.568036,94326.0,94325.0,0.00106016]
[1746059404066,0.628436,94326.0,94325.0,0.00110016]
[1746059404261,0.750436,94326.0,94325.0,0.00110016]
[1746059405060,0.500436,94326.0,94325.0,0.00110016]
[1746059405268,0.45834,94326.0,94325.0,0.21312236]
[1746059405457,0.24632,94326.0,94325.0,0.39312236]
[1746059405766,0.21636,94326.0,94325.0,0.39312236]
[1746059406075,0.18592,94326.0,94325.0,0.39412236]
[1746059406366,0.00788773,94328.0,94327.0,0.2120177]
[1746059406662,0.00080465,94336.0,94335.0,0.2119997]
[1746059406663,0.00075064,94336.0,94335.0,0.2119997]
[1746059406867,0.00075064,94336.0,94335.0,0.4519997]
[1746059407462,0.00075064,94336.0,94335.0,0.5129997]
[1746059408364,0.00175064,94336.0,94335.0,0.5129997]
[1746059409758,0.00075064,94336.0,94335.0,0.5159997]
[1746059409955,0.03195064,94336.0,94335.0,0.5159997]
[1746059410663,0.03095064,94336.0,94335.0,0.5189997]
[1746059411364,0.03095064,94336.0,94335.0,0.5159997]
[1746059411566,0.03095064,94336.0,94335.0,0.5189997]
[1746059412763,0.03095064,94336.0,94335.0,0.5159997]
[1746059412964,0.03095064,94336.0,94335.0,0.5189997]
[1746059414664,0.24294814,94336.0,94335.0,0.5189997]
[1746059415970,0.24294814,94336.0,94335.0,0.5179997]
[1746059416268,0.24294814,94336.0,94335.0,0.5149997]
[1746059416467,0.24294814,94336.0,94335.0,0.5169997]
[1746059420567,0.03095064,94336.0,94335.0,0.5169997]
[1746059421970,0.24294814,94336.0,94335.0,0.5169997]
[1746059425461,0.24294814,94336.0,94335.0,0.5149997]
[1746059425657,0.24294814,94336.0,94335.0,0.5169997]
[1746059426659,0.24294814,94336.0,94335.0,0.5149997]
[1746059426864,0.24294814,94336.0,94335.0,0.5169997]
[1746059428572,0.03095064,94336.0,94335.0,0.5169997]
[1746059428971,0.03095064,94336.0,94335.0,0.5501997]
[1746059429875,0.00075064,94336.0,94335.0,0.5501997]
[1746059430762,0.03315064,94336.0,94335.0,0.5501997]
[1746059430970,0.00075064,94336.0,94335.0,0.6562037]
[1746059431168,5.401e-05,94340.0,94335.0,0.6562037]
[1746059431169,0.00101082,94341.0,94340.0,0.2119885]
[1746059431471,0.00101082,94341.0,94340.0,0.8127885]
[1746059432267,0.00101082,94341.0,94340.0,0.9674885]
[1746059432675,0.00101082,94341.0,94340.0,0.9684885]
[1746059439667,0.21299712,94341.0,94340.0,0.9684885]
[1746059440271,0.21299712,94341.0,94340.0,0.242]
[1746059440477,0.57379712,94341.0,94340.0,0.002]
[1746059440672,0.2120155,94328.0,94327.0,0.16209188]
[1746059440874,0.5728155,94328.0,94327.0,0.16213188]
[1746059441080,0.6948155,94328.0,94327.0,0.16209188]
[1746059441268,0.6948155,94328.0,94327.0,0.16213188]
[1746059441472,0.7579155,94328.0,94327.0,0.16213188]
[1746059441885,0.7579155,94328.0,94327.0,0.16413188]
[1746059442275,0.7579155,94328.0,94327.0,0.16613188]
[1746059444381,0.7579155,94328.0,94327.0,0.00404]
[1746059444578,0.76580517,94328.0,94327.0,0.00404]
[1746059445773,0.76580517,94328.0,94327.0,0.2160577]
[1746059446678,0.76580517,94328.0,94327.0,0.00404]
[1746059447277,0.76580517,94328.0,94327.0,4e-05]
[1746059447477,0.76780517,94328.0,94327.0,4e-05]
[1746059451884,0.87381717,94328.0,94327.0,4e-05]
[1746059452077,0.2120447,94315.0,94308.0,0.2120602]
[1746059452271,0.5728447,94315.0,94313.0,9.841e-05]
[1746059453177,0.6948447,94315.0,94314.0,0.00359041]
[1746059453573,0.6948447,94315.0,94314.0,0.21563731]
[1746059453778,0.6948447,94315.0,94314.0,0.25673731]
[1746059454277,0.6948447,94315.0,94314.0,0.22563731]
[1746059454987,0.6948447,94315.0,94314.0,0.22763731]
[1746059456086,0.3340447,94315.0,94314.0,0.22763731]
[1746059458174,0.3340447,94315.0,94314.0,0.29403731]
[1746059461177,0.122,94315.0,94314.0,0.29403731]
[1746059461386,0.3340447,94315.0,94314.0,0.29403731]
[1746059462191,0.2120447,94315.0,94314.0,0.29403731]
[1746059469796,0.2120447,94315.0,94314.0,0.08199041]
[1746059469994,0.2120447,94315.0,94314.0,0.29403731]
[1746059471493,0.2120447,94315.0,94314.0,0.29407731]
[1746059475099,0.2120447,94315.0,94314.0,0.08203041]
[1746059475495,0.2120447,94315.0,94314.0,0.00559041]
[1746059475796,0.2445447,94315.0,94314.0,0.00563041]
[1746059475987,0.2445447,94315.0,94314.0,0.00567041]
[1746059476184,0.3665447,94315.0,94314.0,0.00567041]
[1746059477287,0.4725727,94315.0,94314.0,0.00408]
[1746059477487,0.2120537,94311.0,94310.0,1e-07]
[1746059477693,0.2120852,94297.0,94296.0,0.16209188]
[1746059477886,0.2120852,94297.0,94296.0,0.17216478]
[1746059477887,0.5728852,94297.0,94296.0,0.17216478]
[1746059478088,0.6948852,94297.0,94296.0,0.17209188]
[1746059478288,0.6948852,94297.0,94296.0,0.01004]
[1746059478494,0.7250852,94297.0,94296.0,0.01004]
[1746059478687,0.7250852,94297.0,94296.0,0.04014]
[1746059479092,0.7250852,94297.0,94296.0,0.04614]
[1746059479803,0.7250852,94297.0,94296.0,0.01604]
[1746059480096,0.7260852,94297.0,94296.0,0.012]
[1746059480897,0.7260852,94297.0,94296.0,0.01204]
[1746059483297,0.7260852,94297.0,94296.0,0.3941274]
[1746059483599,0.3652852,94297.0,94296.0,0.4568274]
[1746059484210,0.2432852,94297.0,94296.0,0.4568274]
[1746059484707,0.2432852,94297.0,94296.0,0.24474]
[1746059485009,0.2432852,94297.0,94296.0,0.4568274]
[1746059486710,0.2432852,94297.0,94296.0,0.24474]
[1746059488809,0.6040852,94297.0,94296.0,0.24474]
[1746059490101,0.7260852,94297.0,94296.0,0.18204]
[1746059490404,0.7260852,94297.0,94296.0,0.01204]
[1746059490799,0.7260852,94297.0,94296.0,0.012]
[1746059491007,0.7260852,94297.0,94296.0,0.01204]
[1746059496611,0.7580852,94297.0,94296.0,0.01204]
[1746059501712,0.7580852,94297.0,94296.0,0.04244]
[1746059502399,0.7580852,94297.0,94296.0,0.07274]
[1746059502815,0.7260852,94297.0,94296.0,0.07274]
[1746059503009,0.7260852,94297.0,94296.0,0.10464]
[1746059503212,0.6040852,94297.0,94296.0,0.10464]
[1746059503605,0.5738852,94297.0,94296.0,0.4767274]
[1746059504232,0.5738852,94297.0,94296.0,0.5987274]
[1746059508216,0.5738852,94297.0,94296.0,0.4767274]
[1746059509807,0.2130852,94297.0,94296.0,0.4767274]
[1746059510612,0.2130852,94297.0,94296.0,0.26464]
[1746059511811,0.2463852,94297.0,94296.0,0.26464]
[1746059513615,0.2463852,94297.0,94296.0,0.4767274]
[1746059518305,0.2463852,94297.0,94296.0,0.26464]
[1746059519615,0.2463852,94297.0,94296.0,0.4767274]
[1746059521730,0.2463852,94297.0,94296.0,0.26464]
[1746059522732,0.2463852,94297.0,94296.0,0.4767274]
[1746059523637,0.2130852,94297.0,94296.0,0.4767274]
[1746059524822,0.001,94297.0,94296.0,0.4767274]
[1746059525226,0.001,94297.0,94296.0,0.5987274]
[1746059526819,0.06392,94311.0,94296.0,0.38664]
[1746059527026,0.2650831,94309.0,94308.0,0.2650704]
[1746059527225,0.2120674,94309.0,94308.0,0.5550704]
[1746059527632,0.06392,94311.0,94310.0,0.2120559]
[1746059527834,0.06392,94311.0,94310.0,0.4120559]
[1746059527835,0.2759737,94311.0,94310.0,0.4120559]
[1746059528237,0.2769737,94311.0,94310.0,0.5340559]
[1746059528828,0.2759737,94311.0,94310.0,0.5340559]
[1746059529139,0.2759737,94311.0,94310.0,0.5370559]
[1746059529837,0.2759737,94311.0,94310.0,0.5390559]
[1746059530028,0.06392,94311.0,94310.0,0.5390559]
[1746059530337,0.243447,94315.0,94314.0,0.2120469]
[1746059530535,0.243447,94315.0,94314.0,0.4620469]
[1746059531236,0.243447,94315.0,94314.0,0.5840469]
[1746059531437,0.243447,94315.0,94314.0,0.5860469]
[1746059532331,0.243447,94315.0,94314.0,0.5880469]
[1746059534625,0.243447,94315.0,94314.0,0.376]
[1746059534829,0.243447,94315.0,94314.0,0.5880469]
[1746059535026,0.274947,94315.0,94314.0,0.376]
[1746059535235,0.274947,94315.0,94314.0,0.254]
[1746059536231,0.396947,94315.0,94314.0,0.254]
[1746059537139,0.396947,94315.0,94314.0,0.004]
[1746059543440,0.290928,94315.0,94301.0,0.0333]
[1746059543641,0.0530176,94304.0,94297.0,0.0326]
[1746059543934,0.2120829,94298.0,94297.0,0.2946852]
[1746059544237,0.2120829,94298.0,94297.0,0.0826]
[1746059544437,0.2120829,94298.0,94297.0,0.2946852]
[1746059544837,0.2424829,94298.0,94297.0,0.2946852]
[1746059545231,0.2424829,94298.0,94297.0,0.2996852]
[1746059546732,0.2424829,94298.0,94297.0,0.3046852]
[1746059546934,0.2434829,94298.0,94297.0,0.3046852]
[1746059549231,0.2130829,94298.0,94297.0,0.4266852]
[1746059550233,0.2130829,94298.0,94297.0,0.3046852]
[1746059552435,0.2438829,94298.0,94297.0,0.3359852]
[1746059555341,0.001,94298.0,94297.0,0.3359852]
[1746059555543,0.001,94298.0,94297.0,0.4420332]
[1746059555842,0.3289943,94309.0,94308.0,0.2120604]
[1746059556033,0.3820096,94309.0,94308.0,0.4620604]
[1746059556642,0.3820096,94309.0,94308.0,0.4933604]
[1746059556944,0.2120591,94309.0,94308.0,0.5236604]
[1746059557141,0.2120591,94309.0,94308.0,0.6456604]
[1746059557540,0.2120591,94309.0,94308.0,0.6486604]
[1746059557849,0.2120558,94311.0,94310.0,0.2120559]
[1746059558044,0.2120558,94311.0,94310.0,0.4620559]
[1746059559042,0.2120558,94311.0,94310.0,0.4650559]
[1746059559235,0.2120558,94311.0,94310.0,0.5870559]
[1746059559439,0.2120558,94311.0,94310.0,0.5890559]
[1746059561234,0.2120558,94311.0,94310.0,0.4670559]
[1746059562135,0.2120558,94311.0,94310.0,0.5890559]
[1746059563137,0.2120558,94311.0,94310.0,0.4670559]
[1746059564352,0.2425558,94311.0,94310.0,0.4670559]
[1746059564743,0.2728558,94311.0,94310.0,0.4670559]
[1746059565442,0.2728558,94311.0,94310.0,0.255]
[1746059565644,0.3034558,94311.0,94310.0,0.255]
[1746059566145,0.4254558,94311.0,94310.0,0.255]
[1746059566449,0.4254558,94311.0,94310.0,0.005]
[1746059570151,0.7862558,94311.0,94310.0,0.005]
[1746059570451,0.4254558,94311.0,94310.0,0.005]
[1746059570656,0.7862558,94311.0,94310.0,0.005]
[1746059571863,0.4254558,94311.0,94310.0,0.005]
[1746059572048,0.7862558,94311.0,94310.0,0.005]
[1746059572247,0.4254558,94311.0,94310.0,0.005]
[1746059572557,0.7862558,94311.0,94310.0,0.005]
[1746059574052,0.4254558,94311.0,94310.0,0.005]
[1746059574353,0.7862558,94311.0,94310.0,0.005]
[1746059576940,0.79693465,94311.0,94310.0,0.005]
[1746059582558,0.2120874,94296.0,94292.0,0.00159079]
[1746059582860,0.5728874,94296.0,94292.0,0.00159079]
[1746059583257,0.6948874,94296.0,94292.0,0.00159079]
[1746059583561,0.6948874,94296.0,94295.0,0.0011005]
[1746059583763,0.6958874,94296.0,94295.0,0.0071005]
[1746059584757,0.6958874,94296.0,94295.0,0.0121005]
[1746059584955,0.7597874,94296.0,94295.0,0.0121005]
[1746059585156,0.7277874,94296.0,94295.0,0.0121005]
[1746059585555,0.7277874,94296.0,94295.0,0.0761005]
[1746059585758,0.7277874,94296.0,94295.0,0.2561005]
[1746059586258,0.6057874,94296.0,94295.0,0.2561005]
[1746059589352,0.2449874,94296.0,94295.0,0.2561005]
[1746059589553,0.2130874,94296.0,94295.0,0.4681902]
[1746059590362,0.2130874,94296.0,94295.0,0.5901902]
[1746059591155,0.2130874,94296.0,94295.0,0.4681902]
[1746059592155,0.5738874,94296.0,94295.0,0.2561005]
[1746059593156,0.2130874,94296.0,94295.0,0.4681502]
[1746059593460,0.2130874,94296.0,94295.0,0.2561005]
[1746059597353,0.5738874,94296.0,94295.0,0.2561005]
[1746059608370,0.6056874,94296.0,94295.0,0.2561005]
[1746059615963,0.2448874,94296.0,94295.0,0.2561005]
[1746059617171,0.2763874,94296.0,94295.0,0.1921005]
[1746059618174,0.2763874,94296.0,94295.0,0.1920605]
[1746059618371,0.2763874,94296.0,94295.0,0.1921005]
[1746059619274,0.2448874,94296.0,94295.0,0.1921005]
[1746059619673,0.2753874,94296.0,94295.0,0.0120605]
[1746059619874,0.2753874,94296.0,94295.0,0.0121005]
[1746059620281,0.3973874,94296.0,94295.0,0.0121005]
[1746059621179,0.0530255,94290.0,94278.0,0.16209188]
[1746059621484,0.2121144,94284.0,94279.0,9.841e-05]
[1746059621784,0.2121144,94284.0,94283.0,0.36084]
[1746059622173,0.3341144,94284.0,94283.0,0.36084]
[1746059622375,0.2041257,94279.0,94278.0,0.16214588]
[1746059622582,0.21465261,94279.0,94278.0,0.09209938]
[1746059622778,0.21465261,94279.0,94278.0,0.09213938]
[1746059623287,0.39845261,94279.0,94278.0,0.09213938]
[1746059623675,0.39845261,94279.0,94278.0,4e-05]
[1746059623882,0.38545261,94279.0,94278.0,4e-05]
[1746059624388,0.39326121,94279.0,94278.0,4e-05]
[1746059624570,0.3837343,94279.0,94278.0,0.00304]
[1746059624775,0.3837343,94279.0,94278.0,0.17304]
[1746059624971,0.4476543,94279.0,94278.0,0.17304]
[1746059625178,0.3256543,94279.0,94278.0,0.00304]
[1746059625386,0.3276543,94279.0,94278.0,0.00304]
[1746059626283,0.2970543,94279.0,94278.0,0.00304]
[1746059627589,0.2970543,94279.0,94278.0,0.4051679]
[1746059629077,0.2970543,94279.0,94278.0,0.5271679]
[1746059630079,0.2970543,94279.0,94278.0,0.4051679]
[1746059631288,0.2970543,94279.0,94278.0,0.5271679]
[1746059631977,0.0747286,94279.0,94278.0,0.5271679]
[1746059632179,0.0108086,94279.0,94278.0,0.5271679]
[1746059633576,0.0108086,94279.0,94278.0,0.6332359]
[1746059640086,0.0108086,94279.0,94278.0,0.8879679]
[1746059642094,0.1080113,94298.0,94278.0,0.781908]
[1746059642283,0.1080113,94298.0,94297.0,0.2120852]
[1746059642284,0.353295,94298.0,94297.0,0.2120852]
[1746059642481,0.353295,94298.0,94297.0,0.3920852]
[1746059642788,0.2452837,94298.0,94297.0,0.3920852]
[1746059643291,0.2452837,94298.0,94297.0,0.4530852]
[1746059643795,0.25731341,94298.0,94297.0,0.4540852]
[1746059644296,0.25831341,94298.0,94297.0,0.4540852]
[1746059644998,0.26331341,94298.0,94297.0,0.4540852]
[1746059652391,0.29601341,94298.0,94297.0,0.4540852]
[1746059659301,0.29601341,94298.0,94297.0,0.181]
[1746059660109,0.41801341,94298.0,94297.0,0.181]
[1746059661197,0.29601341,94298.0,94297.0,0.181]
[1746059667306,0.65681341,94298.0,94297.0,0.181]
[1746059669506,0.65681341,94298.0,94297.0,0.3930852]
[1746059669811,0.65681341,94298.0,94297.0,0.181]
[1746059670007,0.62411341,94298.0,94297.0,0.181]
[1746059672117,0.62411341,94298.0,94297.0,0.3930852]
[1746059672320,0.59091261,94298.0,94297.0,0.3930852]
[1746059672521,0.37882971,94298.0,94297.0,0.3930852]
[1746059673219,0.01802971,94298.0,94297.0,0.5150852]
[1746059674714,0.23011261,94298.0,94297.0,0.5150852]
[1746059675620,0.01802971,94298.0,94297.0,0.5150852]
[1746059676016,0.2120635,94307.0,94305.0,0.2120672]
[1746059676211,0.2120635,94307.0,94306.0,0.2120649]
[1746059676407,0.2120635,94307.0,94306.0,0.4820649]
[1746059676618,0.2120635,94307.0,94306.0,0.5454649]
[1746059677116,0.21999775,94307.0,94306.0,0.6674649]
[1746059677824,0.22499775,94307.0,94306.0,0.6684649]
[1746059678717,0.01893425,94307.0,94306.0,0.6684649]
[1746059678915,0.23099695,94307.0,94306.0,0.6684649]
[1746059679313,0.01893425,94307.0,94306.0,0.6684649]
[1746059682126,0.23099695,94307.0,94306.0,0.6684649]
[1746059682312,0.05143425,94307.0,94306.0,0.6684649]
[1746059682922,0.01893425,94307.0,94306.0,0.6684649]
[1746059687217,0.00159109,94316.0,94315.0,0.2120447]
[1746059687411,0.00159109,94316.0,94315.0,0.4820447]
[1746059687807,0.00163109,94316.0,94315.0,0.4820447]
[1746059688519,0.00963109,94316.0,94315.0,0.5461447]
[1746059689810,0.2240824,94316.0,94315.0,0.5461447]
[1746059690021,0.26430877,94316.0,94315.0,0.5461447]
[1746059690208,0.38630877,94316.0,94315.0,0.5461447]
[1746059699028,0.38630877,94316.0,94315.0,0.3341]
[1746059699342,0.74710877,94316.0,94315.0,0.27]
[1746059700913,0.2120649,94306.0,94305.0,0.41584]
[1746059701130,0.5728649,94306.0,94305.0,0.4558]
[1746059701325,0.5728649,94306.0,94305.0,0.45584]
[1746059701718,0.6342649,94306.0,94305.0,0.45584]
[1746059702222,0.7562649,94306.0,94305.0,0.6679072]
[1746059702420,0.7582649,94306.0,94305.0,0.6679072]
[1746059702826,0.7612649,94306.0,94305.0,0.6689072]
[1746059704415,0.7612649,94306.0,94305.0,0.2531072]
[1746059706129,0.7612649,94306.0,94305.0,0.2530672]
[1746059706430,0.7612649,94306.0,94305.0,0.2531072]
[1746059708332,0.7612649,94306.0,94305.0,0.2837072]
[1746059710536,0.7612649,94306.0,94305.0,0.2836672]
[1746059712035,0.7612649,94306.0,94305.0,0.2837472]
[1746059715528,0.7304649,94306.0,94305.0,0.2836672]
[1746059715723,0.127,94306.0,94305.0,0.6772672]
[1746059715932,0.127,94306.0,94305.0,0.6773472]
[1746059716133,0.005,94306.0,94305.0,1.0931472]
[1746059716532,0.005,94306.0,94305.0,1.1088463]
[1746059720532,0.0001739,94310.0,94309.0,0.2120582]
[1746059720837,0.0001739,94310.0,94309.0,0.9035573]
[1746059721226,0.0001739,94310.0,94309.0,2.4035573]
[1746059721428,0.0001739,94310.0,94309.0,2.4651573]
[1746059721641,0.00782637,94316.0,94310.0,0.0530137]
[1746059721941,5.401e-05,94320.0,94319.0,0.2120357]
[1746059722131,0.0308,94324.0,94323.0,0.2120267]
[1746059722336,0.0308,94324.0,94323.0,0.4820267]
[1746059723142,0.1528,94324.0,94323.0,0.4820267]
[1746059723344,0.1528,94324.0,94323.0,0.49283216]
[1746059724836,0.37296523,94324.0,94323.0,0.49283216]
[1746059725032,0.38096523,94324.0,94323.0,0.49383216]
[1746059726641,0.38096523,94324.0,94323.0,0.50997967]
[1746059728644,0.74176523,94324.0,94323.0,0.49383216]
[1746059729363,0.38096523,94324.0,94323.0,0.49383216]
[1746059731037,0.13814073,94324.0,94323.0,0.49383216]
[1746059731344,5.401e-05,94332.0,94331.0,0.2120087]
[1746059731544,5.401e-05,94332.0,94331.0,0.8528087]
[1746059731845,0.2120055,94333.0,94332.0,0.2120065]
[1746059732146,0.3340055,94333.0,94332.0,0.4720065]
[1746059732441,0.3340055,94333.0,94332.0,0.5043065]
[1746059733543,0.34185432,94333.0,94332.0,0.5043065]
[1746059734449,0.34185432,94333.0,94332.0,0.5083065]
[1746059737546,0.34185432,94333.0,94332.0,0.5063065]
[1746059737745,0.34285432,94333.0,94332.0,0.5073065]
[1746059737945,0.34285432,94333.0,94332.0,0.5093065]
[1746059740350,0.34285432,94333.0,94332.0,0.5073065]
[1746059740546,0.34285432,94333.0,94332.0,0.5093065]
[1746059741657,0.13084882,94333.0,94332.0,0.5093065]
[1746059741949,0.34285302,94333.0,94332.0,0.5093065]
[1746059744855,0.40625302,94333.0,94332.0,0.5093065]
[1746059745448,0.40625302,94333.0,94332.0,0.4770065]
[1746059745649,0.40625302,94333.0,94332.0,0.265]
[1746059746543,0.40625302,94333.0,94332.0,0.4770065]
[1746059747550,0.40625302,94333.0,94332.0,0.265]
[1746059747942,0.40625302,94333.0,94332.0,0.4770065]
[1746059757458,0.40625302,94333.0,94332.0,0.4760065]
[1746059757957,0.40525302,94333.0,94332.0,0.4740065]
[1746059758656,0.40525302,94333.0,94332.0,0.262]
[1746059759047,0.40525302,94333.0,94332.0,0.261]
[1746059759245,0.40525302,94333.0,94332.0,0.4740065]
[1746059759847,0.40525302,94333.0,94332.0,0.4730065]
[1746059760254,0.40525302,94333.0,94332.0,0.4720065]
[1746059761962,0.40525302,94333.0,94332.0,0.4730065]
[1746059762553,0.40525302,94333.0,94332.0,0.4720065]
[1746059763055,0.37335302,94333.0,94332.0,0.4720065]
[1746059763256,0.37339302,94333.0,94332.0,0.5369065]
[1746059763466,0.37339302,94333.0,94332.0,0.5379065]
[1746059764357,0.37339302,94333.0,94332.0,0.5389065]
[1746059765061,0.37339302,94333.0,94332.0,0.5379065]
[1746059765264,0.37339302,94333.0,94332.0,0.5389065]
[1746059765655,0.12984882,94333.0,94332.0,0.5389065]
[1746059765856,0.34189302,94333.0,94332.0,0.5389065]
[1746059772163,0.34189302,94333.0,94332.0,0.3269]
[1746059772360,0.34189302,94333.0,94332.0,0.262]
[1746059772361,0.40569302,94333.0,94332.0,0.262]
[1746059772756,0.40569302,94333.0,94332.0,0.4740065]
[1746059773660,0.40569302,94333.0,94332.0,0.2130065]
[1746059774270,0.40569302,94333.0,94332.0,0.2120065]
[1746059777569,0.40569302,94333.0,94332.0,0.3820065]
[1746059777871,0.40669302,94333.0,94332.0,0.3820065]
[1746059781968,0.40669302,94333.0,94332.0,0.17]
[1746059782166,0.40669302,94333.0,94332.0,0.3820065]
[1746059782563,0.40669302,94333.0,94332.0,0.2120065]
[1746059792176,0.28469302,94333.0,94332.0,0.2120065]
[1746059793082,0.40669302,94333.0,94332.0,0.2120065]
[1746059793280,0.43959302,94333.0,94332.0,0.2421065]
[1746059793480,0.43959302,94333.0,94332.0,0.2747065]
[1746059794483,0.2120222,94325.0,94324.0,0.031]
[1746059794669,0.2120222,94325.0,94324.0,0.4430245]
[1746059794869,0.2444222,94325.0,94324.0,0.4430245]
[1746059795069,0.2120222,94325.0,94324.0,0.4734245]